bitfinex/quotes_SOLUSD_20220114
["timestamp","ask_amount","ask_price","bid_price","bid_amount"]
[1642184726294,6.56371726,146.34,146.27,20.3632]
[1642184726498,6.56371726,146.34,146.27,25.7392]
[1642184726697,3.82971726,146.34,146.28,1.70077588]
[1642184726895,3.82971726,146.34,146.29,9.86]
[1642184727196,3.82971726,146.34,146.29,16.11]
[1642184727394,3.82971726,146.34,146.29,16.37]
[1642184727596,3.82971726,146.34,146.3,4.74897541]
[1642184727897,3.82971726,146.36,146.31,9.86]
[1642184728096,3.82971726,146.36,146.31,10.11]
[1642184728297,3.82971726,146.36,146.31,26.6189]
[1642184729197,7.72860791,146.38,146.31,26.6189]
[1642184731001,3.89889065,146.38,146.31,26.6189]
[1642184732705,3.82971726,146.39,146.31,26.6189]
[1642184733307,7.72839679,146.39,146.31,26.6189]
[1642184733907,7.72839679,146.39,146.31,32.8109]
[1642184734407,7.72839679,146.39,146.31,32.5509]
[1642184734606,7.72839679,146.39,146.31,226.26167588]
[1642184735208,3.82971726,146.41,146.31,226.26167588]
[1642184736611,3.82971726,146.43,146.31,226.26167588]
[1642184738933,7.72733378,146.44,146.31,226.26167588]
[1642184739136,7.72733378,146.44,146.38,10.2454]
[1642184739535,7.72733378,146.44,146.38,10.4954]
[1642184741840,7.72733378,146.44,146.38,10.7554]
[1642184742038,7.72733378,146.44,146.38,16.7554]
[1642184742938,28.30941726,146.45,146.38,16.7554]
[1642184744341,2.731,146.44,146.38,23.0654]
[1642184744541,28.30941726,146.45,146.38,23.0654]
[1642184745141,3.82971726,146.44,146.4,10.2436]
[1642184745541,3.82971726,146.44,146.4,10.4936]
[1642184745942,28.30941726,146.45,146.4,10.4936]
[1642184749948,28.30941726,146.45,146.4,10.7536]
[1642184750245,3.82971726,146.45,146.4,89.1036]
[1642184750446,3.82971726,146.45,146.4,95.1036]
[1642184751145,3.82971726,146.47,146.4,95.1036]
[1642184751345,3.82971726,146.47,146.42,4.74897541]
[1642184751547,3.82971726,146.47,146.44,10.2406]
[1642184751748,3.82971726,146.47,146.45,11.89219997]
[1642184751948,3.82971726,146.47,146.45,19.97919997]
[1642184752145,3.82971726,146.49,146.45,19.97919997]
[1642184752446,7.72597488,146.49,146.45,25.97919997]
[1642184752645,6.72597488,146.49,146.45,19.71919997]
[1642184752847,6.72597488,146.49,146.46,10.2386]
[1642184753046,6.72597488,146.49,146.46,10.4886]
[1642184753245,6.72597488,146.49,146.47,2.03219997]
[1642184753448,3.89625762,146.49,146.47,2.28219997]
[1642184753645,25.4462,146.53,146.47,2.28219997]
[1642184753646,29.34245762,146.53,146.47,2.28219997]
[1642184753847,26.61245762,146.53,146.47,2.28219997]
[1642184754451,3.89625762,146.52,146.47,2.28219997]
[1642184754649,3.89625762,146.52,146.47,12.52119997]
[1642184755052,3.89625762,146.52,146.47,22.38119997]
[1642184760757,3.89625762,146.52,146.47,2.03219997]
[1642184760957,2.73,146.51,146.47,2.03219997]
[1642184761159,2.73,146.51,146.4,20.3285]
[1642184761357,23.3246,146.5,146.4,16.12]
[1642184761557,2.731,146.49,146.4,16.12]
[1642184761758,2.731,146.49,146.4,36.18192996]
[1642184761957,2.731,146.49,146.4,36.43192996]
[1642184761958,2.981,146.49,146.4,36.43192996]
[1642184762257,2.981,146.49,146.41,10.2427]
[1642184762458,2.981,146.49,146.41,16.4927]
[1642184762657,2.731,146.49,146.41,16.4927]
[1642184764888,49.30586191,146.5,146.41,16.4927]
[1642184765060,2.731,146.49,146.41,16.4927]
[1642184766260,2.731,146.49,146.41,18.19347588]
[1642184766458,2.731,146.49,146.41,18.45347588]
[1642184766662,2.731,146.49,146.42,9.86]
[1642184766862,23.3246,146.5,146.44,10.2408]
[1642184767062,23.3246,146.5,146.44,10.4908]
[1642184767465,23.3246,146.5,146.46,1.33679526]
[1642184767665,2.73,146.53,146.46,6.87879526]
[1642184767864,2.73,146.53,146.47,1.70077588]
[1642184768063,2.73,146.53,146.47,0.25]
[1642184768964,2.98,146.53,146.47,0.25]
[1642184769164,3.8953669,146.52,146.45,0.25]
[1642184769364,28.3365669,146.52,146.42,44.2434]
[1642184769565,28.3365669,146.52,146.43,19.22100255]
[1642184769766,28.3365669,146.52,146.43,20.92177843]
[1642184769968,28.3365669,146.52,146.45,10.2402]
[1642184770169,28.3365669,146.52,146.45,20.1002]
[1642184770368,28.3365669,146.52,146.45,26.3502]
[1642184771172,24.4412,146.52,146.45,26.3502]
[1642184774092,24.4412,146.52,146.45,28.05097588]
[1642184774392,24.4412,146.52,146.45,26.3502]
[1642184774792,24.4412,146.52,146.45,28.05097588]
[1642184775095,2.73,146.54,146.45,96.80097588]
[1642184775292,2.73,146.55,146.45,96.80097588]
[1642184775494,5.80479678,146.56,146.45,96.80097588]
[1642184775692,5.80479678,146.56,146.45,121.66617588]
[1642184775892,5.80479678,146.59,146.45,121.66617588]
[1642184776094,26.4674,146.58,146.45,121.66617588]
[1642184777396,3.89470065,146.57,146.45,121.66617588]
[1642184778897,3.89470065,146.57,146.45,115.66617588]
[1642184780199,3.89470065,146.57,146.45,121.66617588]
[1642184784105,24.8193,146.56,146.45,121.66617588]
[1642184785007,2.73,146.59,146.45,121.66617588]
[1642184785205,27.4274,146.59,146.45,121.66617588]
[1642184785406,27.4274,146.59,146.46,123.26]
[1642184785606,27.4274,146.59,146.47,9.86]
[1642184785823,27.4274,146.59,146.53,10.2339]
[1642184786019,27.4274,146.59,146.53,10.4839]
[1642184786619,3.89429344,146.58,146.53,10.4839]
[1642184787422,3.89429344,146.58,146.53,0.25]
[1642184787823,3.89429344,146.58,146.51,10.4858]
[1642184788223,3.89429344,146.58,146.51,28.73089549]
[1642184788827,3.89429344,146.58,146.51,38.59089549]
[1642184789523,3.39429344,146.58,146.51,38.59089549]
[1642184789723,3.39429344,146.58,146.51,20.3458]
[1642184790225,3.39429344,146.58,146.51,10.11]
[1642184791350,13.63169344,146.58,146.51,10.11]
[1642184792251,10.2374,146.58,146.51,10.11]
[1642184793657,24.6974,146.59,146.51,10.11]
[1642184793853,30.6974,146.59,146.51,10.11]
[1642184795461,30.6974,146.59,146.51,20.3462]
[1642184798761,30.6974,146.59,146.51,10.4862]
[1642184798961,2.729,146.58,146.51,10.4862]
[1642184799159,2.729,146.58,146.51,0.25]
[1642184799359,2.979,146.58,146.51,0.25]
[1642184799560,2.979,146.58,146.49,31.53830413]
[1642184800463,2.729,146.58,146.49,31.53830413]
[1642184800961,2.979,146.58,146.49,31.53830413]
[1642184801762,13.2166,146.58,146.49,10.4871]
[1642184801964,13.2166,146.58,146.49,0.25]
[1642184802361,13.2166,146.58,146.47,16.4886]
[1642184802760,24.8133,146.57,146.47,37.47112597]
[1642184802962,12.9691,146.56,146.47,37.47112597]
[1642184803361,13.2191,146.56,146.47,37.47112597]
[1642184806866,13.2191,146.56,146.47,31.47112597]
[1642184809269,24.6629,146.55,146.47,31.47112597]
[1642184809469,2.73,146.54,146.47,31.47112597]
[1642184809898,2.98,146.54,146.47,31.47112597]
[1642184813177,1.94766547,146.51,146.47,31.47112597]
[1642184816185,1.94766547,146.52,146.47,31.47112597]
[1642184818476,1.94766547,146.52,146.47,37.47112597]
[1642184819078,1.94766547,146.52,146.47,31.47112597]
[1642184820278,31.58932821,146.54,146.47,31.47112597]
[1642184820279,33.53699368,146.54,146.47,31.47112597]
[1642184821579,4.92766547,146.54,146.47,31.47112597]
[1642184821781,1.94766547,146.53,146.47,31.47112597]
[1642184822983,1.94766547,146.51,146.47,31.47112597]
[1642184824486,1.94766547,146.51,146.47,0.25]
[1642184824786,2.73,146.5,146.43,10.2323]
[1642184824989,2.98,146.5,146.43,0.25]
[1642184825186,2.98,146.5,146.41,1.73071676]
[1642184825589,28.04918973,146.49,146.41,1.73071676]
[1642184825790,2.731,146.48,146.41,1.73071676]
[1642184825990,2.981,146.48,146.41,1.73071676]
[1642184826488,27.4599,146.48,146.41,1.73071676]
[1642184826694,33.4599,146.48,146.41,1.73071676]
[1642184826992,29.40756547,146.48,146.4,16.56709672]
[1642184827187,39.65196547,146.48,146.4,26.81149672]
[1642184827389,29.40756547,146.48,146.4,33.06149672]
[1642184827589,29.15756547,146.48,146.41,1.70077588]
[1642184827991,29.15756547,146.48,146.41,7.95077588]
[1642184828192,1.94766547,146.47,146.41,7.95077588]
[1642184828393,1.94766547,146.47,146.43,10.2418]
[1642184828592,1.94766547,146.47,146.43,10.4918]
[1642184828797,1.94766547,146.47,146.44,1.70077588]
[1642184828992,1.94766547,146.49,146.44,8.83377588]
[1642184829596,1.94766547,146.49,146.46,4.8316285]
[1642184829797,1.94766547,146.49,146.47,2.03219997]
[1642184829995,1.94766547,146.5,146.47,7.71119997]
[1642184830194,1.94766547,146.5,146.47,7.96119997]
[1642184830896,1.94766547,146.51,146.47,18.20089997]
[1642184832100,25.10926547,146.52,146.46,0.38249867]
[1642184832422,25.10926547,146.52,146.46,8.59249867]
[1642184833323,25.10926547,146.52,146.47,10.2397]
[1642184833524,25.10926547,146.52,146.47,10.4897]
[1642184833728,25.10926547,146.52,146.47,19.2387]
[1642184833928,1.94766547,146.52,146.47,19.2387]
[1642184834123,1.94766547,146.52,146.47,20.93947588]
[1642184834327,1.94766547,146.52,146.47,19.2387]
[1642184835525,1.94766547,146.52,146.47,10.4897]
[1642184835926,1.94766547,146.52,146.47,16.4897]
[1642184837026,1.94766547,146.51,146.47,16.4897]
[1642184838031,1.94766547,146.52,146.47,16.4897]
[1642184838432,2.19766547,146.52,146.43,10.0456]
[1642184838731,4.43077588,146.51,146.42,1.73071676]
[1642184838931,68.49,146.5,146.42,1.73071676]
[1642184839136,76.0,146.48,146.42,1.676e-05]
[1642184839436,93.9522,146.47,146.42,1.676e-05]
[1642184839635,91.2212,146.47,146.42,1.676e-05]
[1642184839837,2.731,146.46,146.42,1.676e-05]
[1642184840032,2.981,146.46,146.37,13.81465585]
[1642184840435,13.2278,146.46,146.37,13.56465585]
[1642184841434,12.9778,146.46,146.37,13.56465585]
[1642184841835,13.2278,146.46,146.37,13.81465585]
[1642184842441,13.2278,146.46,146.37,24.06035585]
[1642184844137,23.9304,146.45,146.37,48.40055585]
[1642184844339,2.732,146.44,146.37,48.40055585]
[1642184845739,6.62860546,146.49,146.38,9.86]
[1642184845942,6.62860546,146.49,146.43,10.2404]
[1642184846141,3.89660546,146.49,146.43,28.7944]
[1642184846343,3.89660546,146.49,146.43,35.0444]
[1642184846543,6.62760546,146.52,146.44,3.38493954]
[1642184846741,3.89660546,146.52,146.44,3.38493954]
[1642184846941,3.89660546,146.52,146.44,9.89493954]
[1642184847141,3.89660546,146.52,146.46,10.2391]
[1642184847347,2.73,146.51,146.44,3.63493954]
[1642184847944,2.73,146.52,146.44,3.63493954]
[1642184848342,2.73,146.52,146.44,13.87533954]
[1642184850346,2.73,146.52,146.44,13.62533954]
[1642184850544,2.98,146.52,146.44,13.62533954]
[1642184851446,2.98,146.52,146.44,13.87533954]
[1642184852048,13.2215,146.52,146.44,13.87533954]
[1642184852750,41.0257324,146.52,146.44,13.87533954]
[1642184853148,41.0257324,146.52,146.44,0.25]
[1642184853548,41.0257324,146.52,146.42,10.2418]
[1642184853948,48.72650828,146.52,146.42,10.2418]
[1642184854148,72.78150828,146.52,146.42,10.2418]
[1642184854350,72.78150828,146.52,146.41,9.86]
[1642184854748,76.67811374,146.52,146.41,9.86]
[1642184854948,76.67811374,146.52,146.41,10.11]
[1642184857154,48.87388134,146.52,146.41,20.3529]
[1642184857357,36.93160546,146.52,146.41,20.3529]
[1642184857553,36.68160546,146.52,146.41,26.3529]
[1642184857754,36.93160546,146.52,146.41,26.6129]
[1642184858156,36.93160546,146.52,146.41,51.0164]
[1642184858782,33.035,146.52,146.41,50.7564]
[1642184858982,33.035,146.52,146.41,51.0164]
[1642184859987,27.035,146.52,146.41,56.4884]
[1642184860388,27.035,146.52,146.42,1.70077588]
[1642184860585,26.785,146.52,146.46,10.2392]
[1642184860784,24.055,146.52,146.46,16.5692]
[1642184860984,24.055,146.52,146.46,16.8192]
[1642184861184,24.055,146.52,146.47,3.04240432]
[1642184861584,24.055,146.52,146.47,3.29240432]
[1642184862385,2.73,146.51,146.47,13.53120432]
[1642184862585,24.055,146.52,146.47,13.53120432]
[1642184863685,24.055,146.52,146.47,13.28120432]
[1642184865090,24.055,146.52,146.47,13.53120432]
[1642184866989,24.055,146.52,146.47,0.25]
[1642184867189,24.055,146.52,146.43,34.4307]
[1642184867494,30.305,146.52,146.4,9.86]
[1642184867689,2.73,146.51,146.4,9.86]
[1642184868089,27.88951185,146.51,146.41,12.01506533]
[1642184868290,10.2437,146.49,146.41,12.01506533]
[1642184868597,2.731,146.48,146.41,12.01506533]
[1642184868789,2.731,146.48,146.41,12.26506533]
[1642184869090,2.981,146.48,146.41,12.26506533]
[1642184870592,2.731,146.48,146.41,12.26506533]
[1642184870791,2.981,146.48,146.41,12.26506533]
[1642184870992,2.731,146.48,146.41,22.50816533]
[1642184871392,2.731,146.49,146.41,22.50816533]
[1642184871793,2.731,146.49,146.41,24.20894121]
[1642184871992,2.731,146.49,146.41,12.19387588]
[1642184872193,12.9749,146.49,146.41,0.25]
[1642184872392,13.2249,146.49,146.41,0.25]
[1642184872593,13.2249,146.49,146.39,34.8358]
[1642184872794,13.2249,146.49,146.39,40.8358]
[1642184872994,13.2249,146.49,146.4,15.21301607]
[1642184873394,13.2249,146.49,146.4,15.46301607]
[1642184873594,28.63128307,146.48,146.4,15.21301607]
[1642184873800,2.731,146.47,146.38,9.86]
[1642184873996,2.981,146.47,146.38,9.86]
[1642184874694,2.981,146.47,146.38,22.90958128]
[1642184875097,2.981,146.47,146.38,23.15958128]
[1642184875296,13.2261,146.47,146.38,33.40418128]
[1642184875495,2.731,146.47,146.38,39.40418128]
[1642184875696,2.731,146.47,146.39,1.70077588]
[1642184876006,2.731,146.47,146.39,1.95077588]
[1642184876399,2.731,146.47,146.4,1.70077588]
[1642184876596,2.731,146.47,146.41,3.90001411]
[1642184876995,25.6727,146.5,146.41,14.39321411]
[1642184877198,48.6439,146.5,146.41,24.25321411]
[1642184877997,48.6439,146.5,146.41,30.25321411]
[1642184878399,48.6439,146.5,146.42,1.70077588]
[1642184878601,45.9129,146.5,146.42,1.95077588]
[1642184878798,45.9129,146.5,146.42,18.19277588]
[1642184879000,45.9129,146.5,146.42,12.19277588]
[1642184879199,45.9129,146.5,146.42,18.19277588]
[1642184879400,45.9129,146.5,146.42,12.19277588]
[1642184879898,45.9129,146.5,146.42,10.492]
[1642184881199,45.9129,146.5,146.42,12.19277588]
[1642184881901,23.62025976,146.49,146.42,0.25]
[1642184882102,2.731,146.48,146.41,10.11]
[1642184882503,2.981,146.48,146.41,10.11]
[1642184883002,2.981,146.48,146.41,25.91374]
[1642184886742,2.981,146.48,146.41,36.15674]
[1642184894955,2.981,146.48,146.41,42.15674]
[1642184895155,2.731,146.48,146.41,36.15674]
[1642184896290,2.731,146.49,146.41,37.85751588]
[1642184896589,2.981,146.49,146.41,37.85751588]
[1642184896795,2.981,146.49,146.41,43.85751588]
[1642184899091,2.731,146.49,146.41,43.85751588]
[1642184899494,2.731,146.49,146.41,44.11751588]
[1642184900193,2.731,146.49,146.41,112.60751588]
[1642184900393,22.9712,146.5,146.41,44.11751588]
[1642184901093,22.9712,146.5,146.41,112.60751588]
[1642184901493,22.9712,146.5,146.41,44.11751588]
[1642184901694,22.9712,146.5,146.41,42.41674]
[1642184901898,22.9712,146.5,146.41,66.46534]
[1642184904297,22.9712,146.5,146.44,10.2408]
[1642184904497,22.9712,146.5,146.45,1.14585539]
[1642184904898,22.9712,146.5,146.45,1.39585539]
[1642184906398,22.9712,146.5,146.45,0.25]
[1642184906598,23.2212,146.5,146.44,0.25]
[1642184906800,2.73,146.49,146.43,9.86]
[1642184907001,2.98,146.49,146.43,10.11]
[1642184907199,2.98,146.49,146.43,9.86]
[1642184907603,2.98,146.49,146.43,22.5660571]
[1642184908602,2.98,146.49,146.43,33.0580571]
[1642184914306,2.98,146.49,146.43,20.352]
[1642184914506,2.98,146.49,146.43,10.11]
[1642184914706,2.98,146.49,146.43,0.25]
[1642184915135,2.98,146.49,146.41,34.5415]
[1642184916437,13.2236,146.49,146.41,34.5415]
[1642184917338,2.98,146.49,146.41,34.5415]
[1642184921946,2.98,146.49,146.41,40.5415]
[1642184923746,2.98,146.49,146.41,34.5415]
[1642184925347,2.98,146.49,146.41,40.5415]
[1642184925647,2.98,146.49,146.41,34.5415]
[1642184926551,2.98,146.49,146.41,36.24227588]
[1642184927852,2.98,146.49,146.41,34.5415]
[1642184928350,2.98,146.49,146.41,40.5415]
[1642184928752,2.98,146.49,146.41,34.5415]
[1642184929952,2.98,146.49,146.41,36.24227588]
[1642184933155,2.98,146.49,146.41,34.5415]
[1642184933558,2.98,146.49,146.41,36.24227588]
[1642184934057,2.73,146.49,146.42,9.86]
[1642184934256,2.73,146.49,146.45,10.2406]
[1642184934456,22.9712,146.5,146.45,23.7126]
[1642184934656,22.9712,146.5,146.46,1.70077588]
[1642184934956,22.9712,146.5,146.46,8.65850636]
[1642184935257,22.9712,146.5,146.46,18.89830636]
[1642184935857,22.9712,146.5,146.46,12.89830636]
[1642184936056,22.9712,146.5,146.46,11.19753048]
[1642184937058,2.73,146.52,146.46,11.19753048]
[1642184937258,6.0,146.52,146.46,11.19753048]
[1642184937458,32.9444,146.53,146.46,11.19753048]
[1642184937659,33.1944,146.53,146.46,11.19753048]
[1642184940365,32.9444,146.53,146.46,11.19753048]
[1642184941468,33.1944,146.53,146.46,11.19753048]
[1642184942067,32.9444,146.53,146.46,11.19753048]
[1642184942767,26.9444,146.53,146.46,11.19753048]
[1642184942968,24.2144,146.53,146.47,11.56077588]
[1642184943168,24.2144,146.53,146.49,10.2378]
[1642184943568,24.2144,146.53,146.49,10.4878]
[1642184945671,24.2144,146.53,146.49,0.25]
[1642184945971,24.2144,146.53,146.47,44.8827]
[1642184949572,2.73,146.54,146.47,44.8827]
[1642184949774,2.73,146.54,146.47,50.8827]
[1642184951174,26.764,146.56,146.47,50.8827]
[1642184951376,24.034,146.56,146.47,51.1427]
[1642184951574,30.284,146.56,146.47,50.8827]
[1642184951774,24.034,146.56,146.47,50.8827]
[1642184951975,24.034,146.56,146.47,51.1427]
[1642184952376,24.034,146.56,146.47,52.84347588]
[1642184959382,24.034,146.56,146.47,121.33347588]
[1642184959984,1.94638073,146.56,146.47,123.21053417]
[1642184960584,1.94638073,146.56,146.47,130.0038187]
[1642184960784,1.94638073,146.58,146.48,1.87705829]
[1642184960985,1.94638073,146.58,146.5,68.49]
[1642184961189,1.94638073,146.58,146.54,14.59494729]
[1642184961588,1.94638073,146.58,146.54,14.84494729]
[1642184961785,1.94638073,146.58,146.54,22.54572317]
[1642184962187,1.94638073,146.58,146.55,10.2333]
[1642184962589,1.94638073,146.58,146.55,16.4833]
[1642184962788,1.94638073,146.59,146.55,16.4833]
[1642184962987,1.94638073,146.59,146.55,23.3533]
[1642184963188,1.94638073,146.59,146.55,25.05407588]
[1642184963813,4.67438073,146.6,146.55,25.05407588]
[1642184964011,1.94638073,146.6,146.55,34.91407588]
[1642184965213,1.94638073,146.61,146.55,34.91407588]
[1642184966413,1.94638073,146.62,146.55,34.91407588]
[1642184967212,1.94638073,146.62,146.55,33.2133]
[1642184967413,1.94638073,146.62,146.56,1.70077588]
[1642184967613,1.94638073,146.62,146.59,10.2305]
[1642184968115,1.94638073,146.62,146.59,10.4805]
[1642184968513,1.94638073,146.63,146.59,10.4805]
[1642184968714,1.94638073,146.63,146.6,14.59494729]
[1642184968915,1.94638073,146.63,146.61,10.2291]
[1642184969117,1.94638073,146.63,146.61,16.2381]
[1642184969316,1.94638073,146.63,146.61,32.3481]
[1642184969515,3.89660546,146.66,146.62,1.70077588]
[1642184969916,3.89660546,146.66,146.63,2.3546481]
[1642184970116,3.89660546,146.66,146.64,10.2266]
[1642184970316,3.89660546,146.66,146.64,19.0666]
[1642184970516,3.89660546,146.66,146.64,25.3166]
[1642184970717,3.89660546,146.66,146.64,27.01737588]
[1642184971017,3.89660546,146.7,146.64,27.01737588]
[1642184971219,3.89660546,146.7,146.64,25.3166]
[1642184972217,2.727,146.71,146.64,35.1766]
[1642184972416,6.62360546,146.72,146.64,35.1766]
[1642184973016,2.727,146.72,146.64,35.1766]
[1642184973619,22.7396,146.73,146.64,35.1766]
[1642184973823,2.726,146.72,146.64,35.1766]
[1642184977624,31.43784973,146.72,146.64,34.9266]
[1642184978022,31.68784973,146.72,146.64,34.9266]
[1642184979124,31.68784973,146.72,146.64,35.1766]
[1642184979824,31.43784973,146.72,146.64,35.1766]
[1642184980731,2.726,146.72,146.64,35.1766]
[1642184981133,2.726,146.72,146.64,36.87737588]
[1642184981332,29.36320546,146.73,146.64,36.87737588]
[1642184981530,26.63620546,146.73,146.64,60.75697588]
[1642184981932,26.63620546,146.73,146.64,59.0562]
[1642184983260,22.7396,146.73,146.64,59.0562]
[1642184983460,22.7396,146.73,146.64,60.75697588]
[1642184984463,22.7396,146.73,146.64,129.50697588]
[1642184985064,2.726,146.74,146.64,129.50697588]
[1642184986263,29.81190546,146.75,146.64,129.50697588]
[1642184986465,27.08590546,146.75,146.64,129.50697588]
[1642184986867,3.89660546,146.76,146.64,136.5891493]
[1642184987365,26.56510546,146.76,146.64,136.5891493]
[1642184987765,30.45331476,146.76,146.64,136.5891493]
[1642184988767,26.56510546,146.76,146.64,136.5891493]
[1642184989568,26.81510546,146.76,146.64,125.78837342]
[1642184989767,26.81510546,146.76,146.64,49.9662]
[1642184989968,32.81510546,146.76,146.64,49.9662]
[1642184990267,10.2269,146.73,146.64,49.9662]
[1642184990471,30.16926992,146.71,146.64,49.9662]
[1642184990670,2.727,146.7,146.64,49.9662]
[1642184991071,2.727,146.7,146.64,50.2162]
[1642184991471,2.727,146.7,146.64,44.2162]
[1642184991873,32.89626992,146.71,146.64,44.2162]
[1642184992071,30.16926992,146.71,146.64,50.2162]
[1642184993175,26.1083,146.72,146.64,50.2162]
[1642184993373,26.3583,146.72,146.64,50.2162]
[1642184993873,32.3583,146.72,146.64,50.2162]
[1642184994474,26.1083,146.72,146.64,50.2162]
[1642184995275,23.3813,146.72,146.64,50.2162]
[1642184995474,23.3813,146.72,146.64,51.91697588]
[1642184997278,23.3813,146.72,146.65,68.49]
[1642184997478,2.727,146.73,146.65,68.49]
[1642184997479,2.727,146.73,146.68,10.2232]
[1642184997678,3.89660546,146.74,146.68,16.9472]
[1642184997879,3.89660546,146.74,146.68,17.1972]
[1642184998080,3.89660546,146.74,146.68,23.1972]
[1642184998881,3.89660546,146.74,146.69,14.59494729]
[1642184999083,24.2225,146.75,146.7,10.2227]
[1642184999483,24.2225,146.75,146.7,10.4727]
[1642184999882,31.46940546,146.77,146.7,10.4727]
[1642185000482,31.71940546,146.77,146.7,10.4727]
[1642185000885,31.46940546,146.77,146.7,10.4727]
[1642185001616,28.74340546,146.77,146.7,10.4727]
[1642185001815,2.726,146.76,146.7,10.4727]
[1642185002916,28.74340546,146.77,146.7,26.5927]
[1642185003119,3.89660546,146.77,146.71,1.70077588]
[1642185003319,3.89660546,146.77,146.74,10.2199]
[1642185003520,3.89660546,146.77,146.74,16.4699]
[1642185003718,3.89660546,146.78,146.75,2.3546481]
[1642185004117,3.89660546,146.78,146.75,8.6046481]
[1642185004519,3.89660546,146.78,146.75,2.6046481]
[1642185004920,3.89660546,146.78,146.75,4.30542398]
[1642185005124,3.89660546,146.78,146.76,10.2188]
[1642185005521,3.89660546,146.78,146.76,16.4688]
[1642185005721,26.62670546,146.81,146.76,16.4688]
[1642185005922,3.89660546,146.81,146.76,16.4688]
[1642185006723,3.89660546,146.81,146.76,28.02957588]
[1642185006924,7.26121865,146.82,146.76,26.0788]
[1642185007823,3.36461319,146.82,146.76,26.0788]
[1642185008226,3.36461319,146.82,146.76,26.3288]
[1642185009629,0.3501573,146.79,146.76,28.28957588]
[1642185010028,3.36461319,146.82,146.77,59.0]
[1642185010228,3.36461319,146.82,146.79,10.2137]
[1642185010526,3.36461319,146.82,146.81,14.59494729]
[1642185010728,3.36461319,146.82,146.81,30.01994729]
[1642185010927,3.36461319,146.82,146.81,36.26994729]
[1642185011130,3.36461319,146.82,146.81,21.675]
[1642185011329,3.36461319,146.82,146.81,31.8882]
[1642185011728,3.36461319,146.82,146.81,25.8882]
[1642185011935,3.36461319,146.82,146.81,31.8882]
[1642185012228,3.36461319,146.82,146.81,48.57134668]
[1642185013732,3.36461319,146.82,146.81,20.3232]
[1642185016737,3.36461319,146.82,146.79,10.2165]
[1642185016936,3.36461319,146.82,146.79,6.0]
[1642185017335,2.724,146.81,146.79,6.0]
[1642185017535,2.724,146.81,146.75,30.2265]
[1642185017735,2.724,146.81,146.75,45.69587768]
[1642185017936,2.724,146.81,146.76,9.86]
[1642185018136,3.36461319,146.82,146.76,9.86]
[1642185018338,3.36461319,146.82,146.77,10.2181]
[1642185018536,6.08861319,146.82,146.77,10.4681]
[1642185019637,3.36461319,146.82,146.77,10.4681]
[1642185020265,3.36461319,146.82,146.78,11.56077588]
[1642185020470,3.36461319,146.82,146.8,10.2146]
[1642185020874,3.36461319,146.82,146.8,16.4646]
[1642185021068,3.36461319,146.82,146.81,3.18099359]
[1642185021470,3.36461319,146.82,146.81,13.64619359]
[1642185021969,3.36461319,146.82,146.81,19.39619359]
[1642185022168,3.36461319,146.82,146.81,13.39619359]
[1642185022869,3.36461319,146.82,146.81,10.2152]
[1642185023070,3.36461319,146.82,146.81,16.2152]
[1642185023569,3.36461319,146.82,146.81,0.25]
[1642185023768,6.39681316,146.82,146.81,0.25]
[1642185023972,3.36461319,146.82,146.79,18.76774201]
[1642185024872,3.36461319,146.82,146.79,30.68501789]
[1642185026070,3.36461319,146.82,146.79,40.54501789]
[1642185028075,3.36461319,146.82,146.79,28.02727588]
[1642185028875,6.06439994,146.81,146.79,20.3265]
[1642185029078,6.06439994,146.81,146.79,10.11]
[1642185029674,6.06439994,146.81,146.79,9.86]
[1642185031079,6.06439994,146.81,146.79,10.11]
[1642185032479,6.06439994,146.81,146.79,20.3272]
[1642185032681,3.03219997,146.81,146.79,20.3272]
[1642185032879,3.36461319,146.82,146.79,26.3272]
[1642185034080,3.36461319,146.82,146.79,20.3272]
[1642185034880,3.36461319,146.82,146.79,26.3272]
[1642185035081,3.36461319,146.82,146.79,28.02797588]
[1642185035280,3.36461319,146.82,146.79,28.28797588]